[Event "Early-Titled-Tuesday-Blitz-April-23-2024"]
[Site "Chess.com"]
[Date "2024.04.23"]
[Round "4"]
[White "Tagir45"]
[Black "DanielNaroditsky"]
[Result "1-0"]
[WhiteElo "2661"]
[BlackElo "3010"]
[TimeControl "180+1"]
[EndTime "8:41:15 PDT"]
[Termination "Tagir45 won by checkmate"]

1. d4 {[%clk 0:02:58.9]} 1... Nf6 {[%clk 0:03:00.9]} 2. c4 {[%clk 0:02:57.9]}
2... g6 {[%clk 0:03:01.5]} 3. Nc3 {[%clk 0:02:57.9]} 3... Bg7 {[%clk 0:03:02.2]}
4. e4 {[%clk 0:02:57.8]} 4... d6 {[%clk 0:03:03]} 5. Nf3 {[%clk 0:02:57.7]} 5...
O-O {[%clk 0:03:03.5]} 6. Be2 {[%clk 0:02:57.8]} 6... Na6 {[%clk 0:03:04.3]} 7.
O-O {[%clk 0:02:55.3]} 7... e5 {[%clk 0:03:05]} 8. Be3 {[%clk 0:02:55]} 8... Qe7
{[%clk 0:03:05.2]} 9. dxe5 {[%clk 0:02:38.4]} 9... dxe5 {[%clk 0:03:06.1]} 10.
Nd5 {[%clk 0:02:36.2]} 10... Qd8 {[%clk 0:03:06.5]} 11. Qc2 {[%clk 0:02:26.4]}
11... Ng4 {[%clk 0:03:05.3]} 12. Bg5 {[%clk 0:02:23.4]} 12... f6 {[%clk
0:03:05.9]} 13. Bd2 {[%clk 0:02:21.6]} 13... c6 {[%clk 0:03:03.7]} 14. Ne3
{[%clk 0:02:21]} 14... Nh6 {[%clk 0:02:58.5]} 15. b4 {[%clk 0:02:18.7]} 15...
Nf7 {[%clk 0:02:57.4]} 16. Rfd1 {[%clk 0:02:17]} 16... Qe7 {[%clk 0:02:57.4]}
17. Rab1 {[%clk 0:02:15.4]} 17... Nc7 {[%clk 0:02:56.5]} 18. c5 {[%clk
0:01:54.5]} 18... Be6 {[%clk 0:02:56.6]} 19. Nc4 {[%clk 0:01:52.6]} 19... f5
{[%clk 0:02:56.7]} 20. Nd6 {[%clk 0:01:37.3]} 20... fxe4 {[%clk 0:02:46.7]} 21.
Nxe4 {[%clk 0:01:34.2]} 21... Nd5 {[%clk 0:02:44.3]} 22. Nfg5 {[%clk 0:01:22.2]}
22... Nxg5 {[%clk 0:02:38.6]} 23. Bxg5 {[%clk 0:01:21.1]} 23... Qf7 {[%clk
0:02:39.1]} 24. Bc4 {[%clk 0:01:13.3]} 24... Bf5 {[%clk 0:02:34.4]} 25. Qe2
{[%clk 0:00:59]} 25... Kh8 {[%clk 0:02:21.9]} 26. Nd6 {[%clk 0:00:55.6]} 26...
Qg8 {[%clk 0:02:21.4]} 27. Rb3 {[%clk 0:00:51.8]} 27... Be6 {[%clk 0:02:16.2]}
28. Bxd5 {[%clk 0:00:33]} 28... Bxd5 {[%clk 0:02:10.5]} 29. Rh3 {[%clk
0:00:26.2]} 29... Qe6 {[%clk 0:02:10.5]} 30. a3 {[%clk 0:00:20.6]} 30... a5
{[%clk 0:02:09.2]} 31. b5 {[%clk 0:00:14.7]} 31... h5 {[%clk 0:02:09.7]} 32. b6
{[%clk 0:00:13.9]} 32... Kg8 {[%clk 0:02:07.4]} 33. Nxb7 {[%clk 0:00:13.2]}
33... Bc4 {[%clk 0:01:52.2]} 34. Qe1 {[%clk 0:00:11.7]} 34... e4 {[%clk
0:01:46.8]} 35. Nd6 {[%clk 0:00:10.5]} 35... Bd5 {[%clk 0:01:47.3]} 36. Be3
{[%clk 0:00:08.6]} 36... Be5 {[%clk 0:01:46.5]} 37. Rg3 {[%clk 0:00:07.9]} 37...
Bxg3 {[%clk 0:01:46.8]} 38. hxg3 {[%clk 0:00:08.8]} 38... Kh7 {[%clk 0:01:39.2]}
39. Qc3 {[%clk 0:00:08.7]} 39... Rad8 {[%clk 0:01:29.7]} 40. Rb1 {[%clk
0:00:08.8]} 40... a4 {[%clk 0:01:25.5]} 41. Qa5 {[%clk 0:00:08.5]} 41... Ra8
{[%clk 0:01:24.3]} 42. Qc3 {[%clk 0:00:08.7]} 42... Bb3 {[%clk 0:01:22.8]} 43.
Qd4 {[%clk 0:00:06.6]} 43... Rad8 {[%clk 0:01:21.1]} 44. Rc1 {[%clk 0:00:02.9]}
44... Rf5 {[%clk 0:01:13.9]} 45. Nxf5 {[%clk 0:00:02]} 45... Rxd4 {[%clk
0:01:14.6]} 46. Nxd4 {[%clk 0:00:02.9]} 46... Qd7 {[%clk 0:01:14.6]} 47. Rb1
{[%clk 0:00:02.9]} 47... g5 {[%clk 0:01:12.4]} 48. Kh2 {[%clk 0:00:02.6]} 48...
Qf7 {[%clk 0:01:10.7]} 49. Nxc6 {[%clk 0:00:01.7]} 49... h4 {[%clk 0:01:10.6]}
50. Nd4 {[%clk 0:00:01.9]} 50... hxg3+ {[%clk 0:01:11]} 51. fxg3 {[%clk
0:00:02.8]} 51... Ba2 {[%clk 0:01:04.9]} 52. Rb2 {[%clk 0:00:02.2]} 52... Qh5+
{[%clk 0:01:04.8]} 53. Kg1 {[%clk 0:00:02.8]} 53... Qd1+ {[%clk 0:01:05.5]} 54.
Kh2 {[%clk 0:00:03.5]} 54... Bd5 {[%clk 0:00:34.3]} 55. b7 {[%clk 0:00:03.8]}
55... Bxb7 {[%clk 0:00:33.7]} 56. Rxb7+ {[%clk 0:00:04.7]} 56... Kg6 {[%clk
0:00:34.2]} 57. c6 {[%clk 0:00:05.4]} 57... Qh5+ {[%clk 0:00:32.5]} 58. Kg1
{[%clk 0:00:05.7]} 58... Qd1+ {[%clk 0:00:33.3]} 59. Kf2 {[%clk 0:00:06.4]}
59... Qa1 {[%clk 0:00:20.9]} 60. c7 {[%clk 0:00:05.9]} 60... Qa2+ {[%clk
0:00:14.1]} 61. Kg1 {[%clk 0:00:05.5]} 61... Qc4 {[%clk 0:00:13.8]} 62. Rb6+
{[%clk 0:00:05.2]} 62... Kh5 {[%clk 0:00:06.7]} 63. Rc6 {[%clk 0:00:06.1]} 63...
Qd3 {[%clk 0:00:05.3]} 64. c8=Q {[%clk 0:00:05.9]} 64... Qxe3+ {[%clk
0:00:05.9]} 65. Kh2 {[%clk 0:00:06.3]} 65... Qxd4 {[%clk 0:00:04.8]} 66. Qe8+
{[%clk 0:00:06.5]} 66... Kg4 {[%clk 0:00:05.1]} 67. Qe6+ {[%clk 0:00:06.5]}
67... Kh5 {[%clk 0:00:05.8]} 68. Qh3# {[%clk 0:00:06.3]} 1-0

[Event "Early-Titled-Tuesday-Blitz-April-23-2024"]
[Site "Chess.com"]
[Date "2024.04.23"]
[Round "4"]
[White "Hope_6"]
[Black "Gryffindorac8"]
[Result "1/2-1/2"]
[WhiteElo "2674"]
[BlackElo "2445"]
[TimeControl "180+1"]
[EndTime "8:41:15 PDT"]
[Termination "Game drawn by agreement"]

1. d4 {[%clk 0:03:00.9]} 1... Nf6 {[%clk 0:02:59.7]} 2. c4 {[%clk 0:03:01.3]}
2... c5 {[%clk 0:02:59.5]} 3. d5 {[%clk 0:02:58.2]} 3... b5 {[%clk 0:02:57.6]}
4. cxb5 {[%clk 0:02:58.1]} 4... a6 {[%clk 0:02:57.8]} 5. bxa6 {[%clk 0:02:57.9]}
5... Bxa6 {[%clk 0:02:58.7]} 6. Nc3 {[%clk 0:02:57.4]} 6... d6 {[%clk
0:02:58.5]} 7. e4 {[%clk 0:02:57.2]} 7... Bxf1 {[%clk 0:02:59.4]} 8. Kxf1 {[%clk
0:02:57.9]} 8... g6 {[%clk 0:02:59.9]} 9. g3 {[%clk 0:02:56.9]} 9... Bg7 {[%clk
0:03:00.2]} 10. Kg2 {[%clk 0:02:57]} 10... O-O {[%clk 0:03:00]} 11. Nf3 {[%clk
0:02:52.5]} 11... Nbd7 {[%clk 0:02:59.5]} 12. Qe2 {[%clk 0:02:46.8]} 12... Qa5
{[%clk 0:02:54.1]} 13. Bd2 {[%clk 0:02:44.3]} 13... Rfb8 {[%clk 0:02:49.9]} 14.
Rhb1 {[%clk 0:02:38.5]} 14... Qa6 {[%clk 0:02:35.9]} 15. Qe1 {[%clk 0:02:32.6]}
15... Ng4 {[%clk 0:02:30.8]} 16. a4 {[%clk 0:02:28.5]} 16... Rb3 {[%clk
0:02:12.6]} 17. h3 {[%clk 0:02:05.9]} 17... Nge5 {[%clk 0:02:06.2]} 18. Nxe5
{[%clk 0:02:00.2]} 18... Nxe5 {[%clk 0:02:07.1]} 19. Qd1 {[%clk 0:01:49.3]}
19... c4 {[%clk 0:01:58.2]} 20. Nb5 {[%clk 0:01:43.3]} 20... Rb8 {[%clk
0:01:55.8]} 21. Qc2 {[%clk 0:01:38.9]} 21... Qc8 {[%clk 0:01:38.6]} 22. Ra3
{[%clk 0:01:32]} 22... Rxa3 {[%clk 0:01:27.4]} 23. Nxa3 {[%clk 0:01:27.8]} 23...
Qa6 {[%clk 0:01:01.5]} 24. Nb5 {[%clk 0:01:23.7]} 24... Rc8 {[%clk 0:00:44.7]}
25. b3 {[%clk 0:01:09.4]} 25... cxb3 {[%clk 0:00:26.4]} 26. Qxb3 {[%clk
0:01:10.3]} 26... Rc4 {[%clk 0:00:21.4]} 27. f4 {[%clk 0:00:55.4]} 27... Rxe4
{[%clk 0:00:21.2]} 28. Be1 {[%clk 0:00:20.5]} 28... Nc4 {[%clk 0:00:17]} 29. Rc1
{[%clk 0:00:16.3]} 29... Ne3+ {[%clk 0:00:15]} 30. Kf3 {[%clk 0:00:14.2]} 30...
f5 {[%clk 0:00:10.7]} 31. Bd2 {[%clk 0:00:12.8]} 31... Qxa4 {[%clk 0:00:06.5]}
32. Qxa4 {[%clk 0:00:11.9]} 32... Rxa4 {[%clk 0:00:07.4]} 33. Bxe3 {[%clk
0:00:05.8]} 33... Kf7 {[%clk 0:00:07.5]} 34. Rc7 {[%clk 0:00:05.2]} 34... Kf8
{[%clk 0:00:06.5]} 35. Rc8+ {[%clk 0:00:05.3]} 35... Kf7 {[%clk 0:00:06.4]} 36.
Rc7 {[%clk 0:00:05.6]} 36... Kf8 {[%clk 0:00:06.4]} 37. Rc6 {[%clk 0:00:05]}
37... Ra5 {[%clk 0:00:06]} 38. Nc7 {[%clk 0:00:05.1]} 38... Bf6 {[%clk
0:00:04.3]} 39. Ne6+ {[%clk 0:00:05.1]} 39... Kf7 {[%clk 0:00:04]} 40. Nc7
{[%clk 0:00:03.7]} 40... Bg7 {[%clk 0:00:03.9]} 41. Rc2 {[%clk 0:00:03.4]} 41...
Ra3 {[%clk 0:00:04.2]} 42. Rc1 {[%clk 0:00:03.6]} 42... Bd4 {[%clk 0:00:04.2]}
43. Re1 {[%clk 0:00:03.5]} 43... Bb6 {[%clk 0:00:04.5]} 44. Ne6 {[%clk
0:00:03.2]} 44... Bxe3 {[%clk 0:00:02.7]} 45. Rxe3 {[%clk 0:00:04.1]} 45... Ra5
{[%clk 0:00:03.2]} 46. Rd3 {[%clk 0:00:04]} 46... Rc5 {[%clk 0:00:03.4]} 47.
Nd8+ {[%clk 0:00:04.3]} 47... Ke8 {[%clk 0:00:03.3]} 48. Ne6 {[%clk 0:00:04.9]}
48... Rb5 {[%clk 0:00:03.4]} 49. g4 {[%clk 0:00:05.3]} 49... Ra5 {[%clk
0:00:03.3]} 50. gxf5 {[%clk 0:00:04.8]} 50... gxf5 {[%clk 0:00:04.2]} 51. h4
{[%clk 0:00:04.6]} 51... Kf7 {[%clk 0:00:04.7]} 52. Ke3 {[%clk 0:00:04.6]} 52...
Rb5 {[%clk 0:00:03.4]} 53. Nd8+ {[%clk 0:00:04.7]} 53... Kf6 {[%clk 0:00:03.4]}
54. Ne6 {[%clk 0:00:05.6]} 54... Ra5 {[%clk 0:00:03.3]} 55. Kf3 {[%clk
0:00:05.3]} 55... Ra4 {[%clk 0:00:03.6]} 56. Kg3 {[%clk 0:00:04.8]} 56... Ra5
{[%clk 0:00:03.4]} 57. h5 {[%clk 0:00:03.8]} 57... Ra1 {[%clk 0:00:03]} 58. Kh4
{[%clk 0:00:03.6]} 58... Rh1+ {[%clk 0:00:03.1]} 59. Rh3 {[%clk 0:00:04.2]}
59... Rd1 {[%clk 0:00:02.4]} 60. Nc7 {[%clk 0:00:03.5]} 60... Rc1 {[%clk
0:00:02.8]} 61. Ne6 {[%clk 0:00:03.7]} 61... Rd1 {[%clk 0:00:03.2]} 62. Nc7
{[%clk 0:00:03.6]} 62... Rc1 {[%clk 0:00:03.4]} 63. Ne8+ {[%clk 0:00:04.2]}
63... Kf7 {[%clk 0:00:03.3]} 64. Nxd6+ {[%clk 0:00:03.8]} 64... exd6 {[%clk
0:00:03.5]} 65. Rd3 {[%clk 0:00:04.5]} 65... Rc5 {[%clk 0:00:03.6]} 66. Kg5
{[%clk 0:00:03.3]} 1/2-1/2

[Event "Early-Titled-Tuesday-Blitz-April-23-2024"]
[Site "Chess.com"]
[Date "2024.04.23"]
[Round "4"]
[White "Larkin-Vladislav"]
[Black "andriipalchuk"]
[Result "1-0"]
[WhiteElo "2887"]
[BlackElo "2614"]
[TimeControl "180+1"]
[EndTime "8:41:16 PDT"]
[Termination "Larkin-Vladislav won on time"]

1. d4 {[%clk 0:02:57.4]} 1... Nf6 {[%clk 0:02:16.4]} 2. Nf3 {[%clk 0:02:53.9]}
2... d5 {[%clk 0:02:16.6]} 3. Bf4 {[%clk 0:02:53.5]} 3... c5 {[%clk 0:02:16.5]}
4. e3 {[%clk 0:02:53.4]} 4... cxd4 {[%clk 0:02:16.8]} 5. exd4 {[%clk 0:02:53.4]}
5... Nc6 {[%clk 0:02:17]} 6. c3 {[%clk 0:02:53.5]} 6... Bf5 {[%clk 0:02:16]} 7.
Qb3 {[%clk 0:02:52.3]} 7... Qc8 {[%clk 0:02:15.9]} 8. Nbd2 {[%clk 0:02:50.7]}
8... e6 {[%clk 0:02:16.1]} 9. h3 {[%clk 0:02:49.3]} 9... Be7 {[%clk 0:02:15.9]}
10. a4 {[%clk 0:02:48.4]} 10... b6 {[%clk 0:02:07.6]} 11. Ne5 {[%clk 0:02:20.4]}
11... O-O {[%clk 0:01:52.3]} 12. Nxc6 {[%clk 0:02:18.7]} 12... Qxc6 {[%clk
0:01:52.1]} 13. Bb5 {[%clk 0:02:10.1]} 13... Qb7 {[%clk 0:01:51.7]} 14. O-O
{[%clk 0:02:08.6]} 14... Rfc8 {[%clk 0:01:34.8]} 15. Be2 {[%clk 0:01:57.2]}
15... a6 {[%clk 0:01:20]} 16. Rfe1 {[%clk 0:01:49.6]} 16... h6 {[%clk
0:00:56.3]} 17. Nf3 {[%clk 0:01:48]} 17... Ne4 {[%clk 0:00:56.2]} 18. Ne5 {[%clk
0:01:40]} 18... Bd6 {[%clk 0:00:54.1]} 19. f3 {[%clk 0:01:04.2]} 19... Nf6
{[%clk 0:00:40.1]} 20. g4 {[%clk 0:01:02]} 20... Bh7 {[%clk 0:00:34.4]} 21. Kg2
{[%clk 0:00:58]} 21... Qc7 {[%clk 0:00:31.1]} 22. Bf1 {[%clk 0:00:54.2]} 22...
Ne8 {[%clk 0:00:20.5]} 23. Be3 {[%clk 0:00:37.9]} 23... Be7 {[%clk 0:00:19.6]}
24. Nd3 {[%clk 0:00:35.3]} 24... Nd6 {[%clk 0:00:19.7]} 25. Bf4 {[%clk
0:00:35.4]} 25... Qb7 {[%clk 0:00:18.2]} 26. Ne5 {[%clk 0:00:34.4]} 26... b5
{[%clk 0:00:14.5]} 27. Bg3 {[%clk 0:00:30.1]} 27... Nc4 {[%clk 0:00:13.2]} 28.
axb5 {[%clk 0:00:25.9]} 28... Qxb5 {[%clk 0:00:14.1]} 29. Qxb5 {[%clk
0:00:18.1]} 29... axb5 {[%clk 0:00:15]} 30. Nd3 {[%clk 0:00:09.3]} 30... Ra4
{[%clk 0:00:09.1]} 31. b3 {[%clk 0:00:04.4]} 31... Rxa1 {[%clk 0:00:09.1]} 32.
Rxa1 {[%clk 0:00:04.5]} 32... Nd2 {[%clk 0:00:09.7]} 33. Nc5 {[%clk 0:00:01]}
33... Bxc5 {[%clk 0:00:07.9]} 34. dxc5 {[%clk 0:00:01.9]} 34... Nxf1 {[%clk
0:00:08.1]} 35. Kxf1 {[%clk 0:00:01.9]} 35... Bd3+ {[%clk 0:00:07.8]} 36. Ke1
{[%clk 0:00:02.1]} 36... Rxc5 {[%clk 0:00:08.1]} 37. Be5 {[%clk 0:00:02.9]}
37... f6 {[%clk 0:00:07.1]} 38. Bd4 {[%clk 0:00:03.6]} 38... Rc6 {[%clk
0:00:07.5]} 39. f4 {[%clk 0:00:04.3]} 39... e5 {[%clk 0:00:07.1]} 40. fxe5
{[%clk 0:00:05.2]} 40... fxe5 {[%clk 0:00:07.3]} 41. Bxe5 {[%clk 0:00:06.1]}
41... Re6 {[%clk 0:00:04.5]} 42. Kd2 {[%clk 0:00:06.7]} 42... Rxe5 {[%clk
0:00:05]} 43. Kxd3 {[%clk 0:00:07.1]} 43... Re6 {[%clk 0:00:04.1]} 44. Ra5
{[%clk 0:00:07.4]} 44... Rb6 {[%clk 0:00:04.7]} 45. Kd4 {[%clk 0:00:08]} 45...
Kf7 {[%clk 0:00:04.6]} 46. b4 {[%clk 0:00:08.2]} 46... Ke6 {[%clk 0:00:04.6]}
47. Kc5 {[%clk 0:00:08.9]} 47... Rb7 {[%clk 0:00:05.1]} 48. Rxb5 {[%clk
0:00:09.3]} 48... Rc7+ {[%clk 0:00:04.4]} 49. Kd4 {[%clk 0:00:09.9]} 49... Rc4+
{[%clk 0:00:04.8]} 50. Kd3 {[%clk 0:00:10.3]} 50... h5 {[%clk 0:00:05.7]} 51.
Rb6+ {[%clk 0:00:10.4]} 51... Ke5 {[%clk 0:00:06.1]} 52. Rg6 {[%clk 0:00:10.7]}
52... hxg4 {[%clk 0:00:06.7]} 53. hxg4 {[%clk 0:00:11.6]} 53... Rf4 {[%clk
0:00:06.9]} 54. Rxg7 {[%clk 0:00:11.9]} 54... Rf3+ {[%clk 0:00:07]} 55. Kc2
{[%clk 0:00:12.3]} 55... d4 {[%clk 0:00:07.2]} 56. Rc7 {[%clk 0:00:11.6]} 56...
Rf2+ {[%clk 0:00:05.5]} 57. Kb3 {[%clk 0:00:11.7]} 57... d3 {[%clk 0:00:05.6]}
58. Rd7 {[%clk 0:00:11.8]} 58... Ke4 {[%clk 0:00:04.6]} 59. g5 {[%clk
0:00:12.3]} 59... Rg2 {[%clk 0:00:04.6]} 60. Kc4 {[%clk 0:00:12.3]} 60... Rg3
{[%clk 0:00:03.2]} 61. Rd4+ {[%clk 0:00:11.1]} 1-0

[Event "Early-Titled-Tuesday-Blitz-April-23-2024"]
[Site "Chess.com"]
[Date "2024.04.23"]
[Round "4"]
[White "ravengelic"]
[Black "xxysoul6"]
[Result "1-0"]
[WhiteElo "2658"]
[BlackElo "2978"]
[TimeControl "180+1"]
[EndTime "8:41:25 PDT"]
[Termination "ravengelic won by resignation"]

1. d4 {[%clk 0:03:00.9]} 1... Nf6 {[%clk 0:02:58.9]} 2. Bf4 {[%clk 0:03:01.3]}
2... e6 {[%clk 0:02:58.1]} 3. e3 {[%clk 0:03:01.8]} 3... b6 {[%clk 0:02:58.2]}
4. Nf3 {[%clk 0:03:01.5]} 4... Bb7 {[%clk 0:02:57.8]} 5. h3 {[%clk 0:03:02.2]}
5... Bd6 {[%clk 0:02:55.8]} 6. Bxd6 {[%clk 0:03:01.8]} 6... cxd6 {[%clk
0:02:56.4]} 7. Nbd2 {[%clk 0:03:02.7]} 7... Nc6 {[%clk 0:02:56.3]} 8. Be2 {[%clk
0:03:02]} 8... O-O {[%clk 0:02:55.8]} 9. O-O {[%clk 0:03:02.5]} 9... Ne7 {[%clk
0:02:55.4]} 10. c3 {[%clk 0:03:02.6]} 10... Qc7 {[%clk 0:02:54.9]} 11. Qb3
{[%clk 0:03:01.6]} 11... Rfc8 {[%clk 0:02:53.9]} 12. Qa3 {[%clk 0:03:02]} 12...
h6 {[%clk 0:02:50.9]} 13. Rfe1 {[%clk 0:03:01.7]} 13... a5 {[%clk 0:02:47.9]}
14. Nc4 {[%clk 0:03:01.6]} 14... Nf5 {[%clk 0:02:46.3]} 15. Ncd2 {[%clk
0:02:54.8]} 15... Bc6 {[%clk 0:02:44.2]} 16. c4 {[%clk 0:02:49]} 16... Ne4
{[%clk 0:02:32]} 17. Nxe4 {[%clk 0:02:48]} 17... Bxe4 {[%clk 0:02:32.6]} 18.
Rac1 {[%clk 0:02:48.6]} 18... Qb7 {[%clk 0:02:25.9]} 19. Red1 {[%clk 0:02:41.8]}
19... Rab8 {[%clk 0:02:11.7]} 20. Ne1 {[%clk 0:02:40.7]} 20... Qc7 {[%clk
0:02:09]} 21. f3 {[%clk 0:02:27.8]} 21... Ng3 {[%clk 0:02:05.6]} 22. Kf2 {[%clk
0:02:21.3]} 22... Nxe2 {[%clk 0:02:03.9]} 23. Kxe2 {[%clk 0:02:22.2]} 23... Bg6
{[%clk 0:02:03.5]} 24. Kf2 {[%clk 0:02:19.5]} 24... d5 {[%clk 0:01:55.2]} 25. b3
{[%clk 0:02:15.9]} 25... dxc4 {[%clk 0:01:54.1]} 26. Rxc4 {[%clk 0:02:11]} 26...
Qb7 {[%clk 0:01:54.3]} 27. Rdc1 {[%clk 0:02:09.6]} 27... d5 {[%clk 0:01:54.1]}
28. R4c3 {[%clk 0:02:02.4]} 28... h5 {[%clk 0:01:47.7]} 29. h4 {[%clk
0:01:56.6]} 29... Rxc3 {[%clk 0:01:35.8]} 30. Rxc3 {[%clk 0:01:56.2]} 30... Rc8
{[%clk 0:01:36.1]} 31. Qc1 {[%clk 0:01:56]} 31... Rxc3 {[%clk 0:01:35.2]} 32.
Qxc3 {[%clk 0:01:56.9]} 32... Qa6 {[%clk 0:01:32.2]} 33. a4 {[%clk 0:01:55.5]}
33... b5 {[%clk 0:01:29]} 34. axb5 {[%clk 0:01:53.1]} 34... Qxb5 {[%clk
0:01:28.7]} 35. g3 {[%clk 0:01:49.3]} 35... Bb1 {[%clk 0:01:19.5]} 36. Qb2
{[%clk 0:01:14.8]} 36... Bf5 {[%clk 0:01:17.2]} 37. Qc3 {[%clk 0:01:15.3]} 37...
Bh3 {[%clk 0:01:15.4]} 38. Nd3 {[%clk 0:01:12.6]} 38... f6 {[%clk 0:01:14.1]}
39. e4 {[%clk 0:01:11.1]} 39... dxe4 {[%clk 0:01:10]} 40. fxe4 {[%clk 0:01:12]}
40... Kh7 {[%clk 0:01:03.1]} 41. Nf4 {[%clk 0:00:54.9]} 41... Qf1+ {[%clk
0:01:01.6]} 42. Ke3 {[%clk 0:00:55.4]} 42... Bg4 {[%clk 0:01:01.9]} 43. e5
{[%clk 0:00:42.9]} 43... fxe5 {[%clk 0:00:50.2]} 44. dxe5 {[%clk 0:00:43.8]}
44... Qf3+ {[%clk 0:00:44.7]} 45. Kd4 {[%clk 0:00:37.1]} 45... Qf2+ {[%clk
0:00:35.2]} 46. Kc4 {[%clk 0:00:30.7]} 46... Qb6 {[%clk 0:00:31.2]} 47. Qd3+
{[%clk 0:00:28]} 47... Bf5 {[%clk 0:00:30.9]} 48. Qd6 {[%clk 0:00:19.8]} 48...
Qe3 {[%clk 0:00:27.2]} 49. Nxe6 {[%clk 0:00:16.3]} 49... Qc1+ {[%clk 0:00:24.1]}
50. Kb5 {[%clk 0:00:15.4]} 50... Qc8 {[%clk 0:00:18.1]} 51. Ng5+ {[%clk
0:00:14.9]} 51... Kh8 {[%clk 0:00:18.5]} 52. Nf7+ {[%clk 0:00:14.5]} 52... Kh7
{[%clk 0:00:16.5]} 53. Ng5+ {[%clk 0:00:14.9]} 53... Kh8 {[%clk 0:00:16.5]} 54.
Kxa5 {[%clk 0:00:15.4]} 54... Bd7 {[%clk 0:00:15]} 55. Kb4 {[%clk 0:00:14.3]}
55... Qb7+ {[%clk 0:00:13.2]} 56. Kc3 {[%clk 0:00:14.3]} 56... Kg8 {[%clk
0:00:13.5]} 57. e6 {[%clk 0:00:12.5]} 57... Be8 {[%clk 0:00:13.8]} 58. e7 {[%clk
0:00:12.3]} 58... Qc8+ {[%clk 0:00:13.5]} 59. Kb2 {[%clk 0:00:11.7]} 59... Qf5
{[%clk 0:00:13.7]} 60. Qe6+ {[%clk 0:00:11.1]} 60... Qxe6 {[%clk 0:00:13.1]} 61.
Nxe6 {[%clk 0:00:12]} 61... Kf7 {[%clk 0:00:13.2]} 62. Nc7 {[%clk 0:00:12.4]}
62... Bd7 {[%clk 0:00:13.1]} 63. e8=Q+ {[%clk 0:00:12.3]} 1-0

[Event "Early-Titled-Tuesday-Blitz-April-23-2024"]
[Site "Chess.com"]
[Date "2024.04.23"]
[Round "4"]
[White "luckyswitchback"]
[Black "artin10862"]
[Result "1-0"]
[WhiteElo "2730"]
[BlackElo "2922"]
[TimeControl "180+1"]
[EndTime "8:41:30 PDT"]
[Termination "luckyswitchback won by resignation"]

1. e4 {[%clk 0:03:00.9]} 1... c5 {[%clk 0:02:56.9]} 2. Nf3 {[%clk 0:03:00.5]}
2... d6 {[%clk 0:02:56.4]} 3. d4 {[%clk 0:03:01.1]} 3... cxd4 {[%clk 0:02:57]}
4. Qxd4 {[%clk 0:03:02]} 4... Nf6 {[%clk 0:02:53.8]} 5. h3 {[%clk 0:02:57.9]}
5... Nc6 {[%clk 0:02:48.1]} 6. Qe3 {[%clk 0:02:56.7]} 6... e6 {[%clk 0:02:42.3]}
7. c4 {[%clk 0:02:53.8]} 7... a6 {[%clk 0:02:39.6]} 8. Nc3 {[%clk 0:02:51.1]}
8... b6 {[%clk 0:02:39.5]} 9. Be2 {[%clk 0:02:49]} 9... Be7 {[%clk 0:02:38.6]}
10. O-O {[%clk 0:02:48.4]} 10... O-O {[%clk 0:02:39]} 11. b3 {[%clk 0:02:47]}
11... Bb7 {[%clk 0:02:38.1]} 12. Rd1 {[%clk 0:02:45.6]} 12... Qc7 {[%clk
0:02:37.9]} 13. Bb2 {[%clk 0:02:41.3]} 13... Rac8 {[%clk 0:02:37]} 14. Rac1
{[%clk 0:02:39.9]} 14... Nb8 {[%clk 0:02:29.3]} 15. a4 {[%clk 0:02:13.2]} 15...
Nbd7 {[%clk 0:02:27.8]} 16. b4 {[%clk 0:02:09.4]} 16... Qb8 {[%clk 0:02:24.8]}
17. Nd2 {[%clk 0:01:57.7]} 17... a5 {[%clk 0:02:18.4]} 18. bxa5 {[%clk
0:01:47.7]} 18... bxa5 {[%clk 0:02:18.2]} 19. Nb5 {[%clk 0:01:47.9]} 19... Qa8
{[%clk 0:02:11.1]} 20. Ba3 {[%clk 0:01:34.9]} 20... Nc5 {[%clk 0:02:08.3]} 21.
f3 {[%clk 0:01:20.7]} 21... Rfd8 {[%clk 0:02:03.4]} 22. Nb3 {[%clk 0:01:11.8]}
22... Nxb3 {[%clk 0:01:46.2]} 23. Qxb3 {[%clk 0:01:11.9]} 23... Ne8 {[%clk
0:01:41.9]} 24. e5 {[%clk 0:01:08.5]} 24... Bg5 {[%clk 0:01:41.5]} 25. exd6
{[%clk 0:00:57.4]} 25... Bxc1 {[%clk 0:01:41.2]} 26. Rxc1 {[%clk 0:00:54.6]}
26... Bc6 {[%clk 0:01:39]} 27. c5 {[%clk 0:00:53.3]} 27... Nf6 {[%clk
0:01:34.9]} 28. Qe3 {[%clk 0:00:47.8]} 28... Nd7 {[%clk 0:01:32.2]} 29. Bb2
{[%clk 0:00:35.9]} 29... e5 {[%clk 0:01:32.1]} 30. Bc4 {[%clk 0:00:32.1]} 30...
Kf8 {[%clk 0:01:08]} 31. f4 {[%clk 0:00:27.2]} 31... Bxg2 {[%clk 0:01:02.8]} 32.
fxe5 {[%clk 0:00:23.9]} 32... Nxc5 {[%clk 0:00:48.1]} 33. d7 {[%clk 0:00:14.4]}
33... Nxd7 {[%clk 0:00:44.5]} 34. e6 {[%clk 0:00:14.8]} 34... Qe4 {[%clk
0:00:28.4]} 35. Ba3+ {[%clk 0:00:09.1]} 35... Kg8 {[%clk 0:00:28.1]} 36. exf7+
{[%clk 0:00:08.5]} 36... Kh8 {[%clk 0:00:27.5]} 37. Qxe4 {[%clk 0:00:08.7]}
37... Bxe4 {[%clk 0:00:28.4]} 38. Nd6 {[%clk 0:00:09.3]} 38... Bg6 {[%clk
0:00:17.9]} 39. Nxc8 {[%clk 0:00:09.2]} 39... Rxc8 {[%clk 0:00:18.8]} 40. Rd1
{[%clk 0:00:03.5]} 40... Ne5 {[%clk 0:00:11.9]} 41. Be6 {[%clk 0:00:01.7]} 41...
Ra8 {[%clk 0:00:08.8]} 42. f8=Q+ {[%clk 0:00:02.2]} 42... Rxf8 {[%clk
0:00:09.6]} 43. Bxf8 {[%clk 0:00:03]} 43... h6 {[%clk 0:00:10.5]} 44. Bd6 {[%clk
0:00:03.1]} 44... Nf3+ {[%clk 0:00:10.7]} 45. Kf2 {[%clk 0:00:03.7]} 45... Ng5
{[%clk 0:00:11.6]} 46. Bg4 {[%clk 0:00:03.1]} 46... Kh7 {[%clk 0:00:11.9]} 47.
Bf4 {[%clk 0:00:03.2]} 47... Ne4+ {[%clk 0:00:12.1]} 48. Kg1 {[%clk 0:00:03.6]}
48... Nc3 {[%clk 0:00:12.6]} 49. Re1 {[%clk 0:00:03.6]} 49... Nxa4 {[%clk
0:00:12.8]} 50. Bc7 {[%clk 0:00:04]} 50... Nb2 {[%clk 0:00:11.3]} 51. Bxa5
{[%clk 0:00:03.5]} 51... Nd3 {[%clk 0:00:12]} 52. Rf1 {[%clk 0:00:02.9]} 52...
Ne5 {[%clk 0:00:10.2]} 53. Bc3 {[%clk 0:00:03.4]} 53... Nxg4 {[%clk 0:00:10.4]}
54. hxg4 {[%clk 0:00:04.3]} 54... Kg8 {[%clk 0:00:10.9]} 55. Re1 {[%clk
0:00:04.8]} 55... Kf7 {[%clk 0:00:10.6]} 56. Kf2 {[%clk 0:00:05.5]} 56... Bd3
{[%clk 0:00:10]} 57. Kg3 {[%clk 0:00:06]} 57... Bb5 {[%clk 0:00:10.1]} 58. Kf4
{[%clk 0:00:06.4]} 58... Kg6 {[%clk 0:00:10.6]} 59. Re6+ {[%clk 0:00:06.1]}
59... Kf7 {[%clk 0:00:10.9]} 60. Rb6 {[%clk 0:00:07]} 60... Bd3 {[%clk 0:00:10]}
61. Rb7+ {[%clk 0:00:07.3]} 61... Ke6 {[%clk 0:00:10.6]} 62. Rxg7 {[%clk
0:00:08]} 62... Bc2 {[%clk 0:00:10.7]} 63. Rb7 {[%clk 0:00:07.7]} 63... Bd3
{[%clk 0:00:10.2]} 64. Rb6+ {[%clk 0:00:07.9]} 64... Kf7 {[%clk 0:00:10.8]} 65.
Rxh6 {[%clk 0:00:08.8]} 65... Bc2 {[%clk 0:00:11.7]} 66. Rf6+ {[%clk 0:00:09.5]}
66... Kg8 {[%clk 0:00:12.5]} 67. g5 {[%clk 0:00:09.6]} 67... Kg7 {[%clk
0:00:13.4]} 68. Rc6+ {[%clk 0:00:09.2]} 68... Kg8 {[%clk 0:00:14.3]} 69. Rc7
{[%clk 0:00:09.4]} 69... Bg6 {[%clk 0:00:14]} 70. Ke5 {[%clk 0:00:09.4]} 70...
Be8 {[%clk 0:00:14.4]} 71. Kf6 {[%clk 0:00:09.7]} 71... Bf7 {[%clk 0:00:13.6]}
72. Rxf7 {[%clk 0:00:09]} 1-0